bitfinex-derivatives/quotes_BTCF0:USTF0_20250926
["timestamp","ask_amount","ask_price","bid_price","bid_amount"]
[1758890658629,0.01263,109500.0,109490.0,1.36783028]
[1758890658936,0.01263,109500.0,109490.0,1.45915865]
[1758890659232,0.01463,109500.0,109490.0,1.45915865]
[1758890659431,0.02063,109500.0,109490.0,1.45915865]
[1758890662640,0.02063,109500.0,109490.0,1.45759865]
[1758890662932,0.008,109500.0,109490.0,1.45759865]
[1758890664637,0.008,109500.0,109490.0,1.74183911]
[1758890665738,0.008,109500.0,109490.0,2.14183911]
[1758890666334,0.008,109500.0,109490.0,2.20685537]
[1758890666529,0.01263,109510.0,109500.0,0.0912608]
[1758890666736,0.03585,109520.0,109510.0,0.0912522]
[1758890666935,0.03585,109520.0,109510.0,0.38833317]
[1758890667138,0.03585,109520.0,109510.0,0.47966154]
[1758890667940,0.1270939,109520.0,109510.0,0.18258057]
[1758890668146,0.1270939,109520.0,109510.0,1.44350154]
[1758890668844,0.03585,109520.0,109510.0,1.44350154]
[1758890669538,0.04885,109520.0,109510.0,1.14642057]
[1758890669743,0.05285,109520.0,109510.0,1.44350154]
[1758890670546,0.05285,109520.0,109510.0,1.45588192]
[1758890671035,0.1440941,109520.0,109510.0,1.45588192]
[1758890671233,0.1440941,109520.0,109510.0,1.14642057]
[1758890671637,0.1440941,109520.0,109510.0,1.45588192]
[1758890672034,0.05285,109520.0,109510.0,1.45588192]
[1758890672238,0.05285,109520.0,109510.0,1.14642057]
[1758890672438,0.01263,109550.0,109540.0,0.0912275]
[1758890672636,0.01322,109560.0,109550.0,0.0912192]
[1758890672838,0.01322,109570.0,109560.0,0.0912108]
[1758890673143,0.01322,109570.0,109560.0,1.33003556]
[1758890673542,0.01322,109570.0,109560.0,1.42130558]
[1758890673737,0.01322,109570.0,109560.0,1.82130558]
[1758890673939,0.01322,109570.0,109560.0,1.82102558]
[1758890674338,0.01322,109570.0,109560.0,1.82999294]
[1758890674644,0.01322,109580.0,109570.0,0.0912025]
[1758890674839,0.01322,109580.0,109570.0,0.36758726]
[1758890675247,0.01322,109580.0,109570.0,0.45885728]
[1758890675444,0.03502,109580.0,109570.0,0.36765478]
[1758890675742,0.5262142,109580.0,109560.0,0.0912055]
[1758890675951,0.5262142,109580.0,109550.0,1.55030156]
[1758890675952,0.01322,109560.0,109550.0,1.47760396]
[1758890676142,0.01322,109560.0,109550.0,2.43920396]
[1758890676447,0.01322,109560.0,109550.0,2.53034565]
[1758890677537,0.01322,109560.0,109550.0,1.29248089]
[1758890677538,0.1044308,109560.0,109550.0,1.29248089]
[1758890677734,0.01322,109560.0,109550.0,1.14656089]
[1758890677942,0.1262308,109560.0,109550.0,0.18548089]
[1758890678144,0.1262308,109560.0,109550.0,0.09426169]
[1758890678344,0.5262308,109560.0,109550.0,0.003]
[1758890678941,0.5282308,109560.0,109550.0,0.00176038]
[1758890679143,0.1262558,109530.0,109520.0,0.9608]
[1758890679343,0.03502,109530.0,109520.0,0.0912441]
[1758890679636,0.03502,109530.0,109520.0,0.18252245]
[1758890679841,0.03502,109530.0,109520.0,0.0912441]
[1758890680041,0.1262558,109530.0,109510.0,0.41315406]
[1758890680240,0.03402,109520.0,109510.0,0.1367693]
[1758890680440,0.03402,109520.0,109510.0,0.22804765]
[1758890680441,0.03224,109520.0,109510.0,0.22804765]
[1758890681038,0.03224,109520.0,109510.0,0.50443241]
[1758890681245,0.02324,109520.0,109510.0,0.50939241]
[1758890681748,0.01322,109520.0,109510.0,0.23300765]
[1758890682053,0.01322,109520.0,109510.0,0.52439241]
[1758890682643,0.03602,109530.0,109520.0,0.096204]
[1758890682842,0.03502,109530.0,109520.0,0.096204]
[1758890683055,0.01322,109530.0,109520.0,0.096204]
[1758890683242,0.03502,109530.0,109520.0,0.37258876]
[1758890683444,0.43502,109530.0,109520.0,0.096204]
[1758890684050,0.5262557,109530.0,109520.0,0.00496]
[1758890684647,0.41322,109530.0,109520.0,0.096204]
[1758890684948,0.44802,109530.0,109520.0,0.096204]
[1758890685153,0.44902,109530.0,109520.0,0.37258876]
[1758890685344,0.5402557,109530.0,109520.0,0.00496]
[1758890685746,0.44902,109530.0,109520.0,0.096204]
[1758890686157,0.44902,109530.0,109520.0,0.37258876]
[1758890686549,0.5402557,109530.0,109520.0,0.37258876]
[1758890687150,0.5402557,109530.0,109520.0,0.096204]
[1758890687350,0.014,109530.0,109520.0,0.46389211]
[1758890688053,0.014,109530.0,109520.0,0.86389211]
[1758890688947,0.1262479,109540.0,109530.0,0.00496]
[1758890689151,0.01322,109540.0,109530.0,1.33134016]
[1758890689551,0.01322,109540.0,109530.0,1.42263517]
[1758890690050,0.01322,109540.0,109530.0,0.18749041]
[1758890690354,0.01322,109540.0,109530.0,1.42239517]
[1758890690557,0.01322,109540.0,109530.0,1.14601041]
[1758890690756,0.01322,109540.0,109530.0,1.42239517]
[1758890691851,0.03522,109540.0,109530.0,1.42239517]
[1758890692053,0.03522,109540.0,109530.0,1.42339517]
[1758890692557,0.1482474,109540.0,109530.0,1.42303547]
[1758890692757,0.1482474,109540.0,109530.0,1.42203547]
[1758890692963,0.1492474,109540.0,109530.0,1.42203547]
[1758890693258,0.05802,109540.0,109530.0,1.14565071]
[1758890693455,0.05802,109540.0,109530.0,1.42203547]
[1758890693961,0.05802,109540.0,109530.0,1.14565071]
[1758890694258,0.05802,109540.0,109530.0,1.42203547]
[1758890694459,0.03622,109540.0,109530.0,1.42203547]
[1758890695260,0.03622,109540.0,109530.0,1.14565071]
[1758890695761,0.1274471,109540.0,109530.0,1.42203547]
[1758890696256,0.1492471,109540.0,109530.0,0.18749071]
[1758890696462,0.1492471,109540.0,109530.0,1.14525071]
[1758890696657,0.05802,109540.0,109530.0,1.14525071]
[1758890697061,0.1492471,109540.0,109530.0,1.42163547]
[1758890697763,0.023,109540.0,109530.0,0.46387547]
[1758890697955,0.03622,109540.0,109530.0,0.46387547]
[1758890699663,0.03522,109540.0,109530.0,0.46387547]
[1758890699863,0.022,109540.0,109530.0,0.46487547]
[1758890700063,0.03502,109550.0,109540.0,0.0961871]
[1758890700267,0.1262388,109550.0,109540.0,0.00496]
[1758890700463,0.1262388,109550.0,109540.0,0.0961871]
[1758890701359,0.1262475,109540.0,109530.0,0.0971958]
[1758890701766,0.1262475,109540.0,109530.0,0.09724668]
[1758890701972,0.1262475,109540.0,109530.0,0.097196]
[1758890702365,0.5262475,109540.0,109530.0,0.001]
[1758890702763,0.5332475,109540.0,109530.0,0.092236]
[1758890702964,0.1332475,109540.0,109530.0,0.097196]
[1758890703263,0.04202,109540.0,109530.0,0.097196]
[1758890703469,0.05402,109540.0,109530.0,0.37258076]
[1758890703670,0.05602,109540.0,109530.0,0.37258076]
[1758890703971,0.03422,109540.0,109530.0,0.46387577]
[1758890704373,0.021,109540.0,109530.0,0.46387577]
[1758890704859,0.021,109540.0,109530.0,0.86387577]
[1758890705464,0.021,109540.0,109530.0,0.92889203]
[1758890705670,0.015,109540.0,109530.0,0.92889203]
[1758890705872,0.014,109540.0,109530.0,0.92889203]
[1758890706470,0.008,109540.0,109530.0,0.92889203]
[1758890706673,0.007,109540.0,109530.0,0.92889203]
[1758890706874,0.007,109540.0,109530.0,0.92989203]
[1758890707076,0.007,109540.0,109530.0,0.86487577]
[1758890707475,0.007,109540.0,109530.0,1.82047577]
[1758890707970,0.01322,109560.0,109550.0,0.0912194]
[1758890708279,0.01322,109560.0,109550.0,0.36760416]
[1758890708575,0.01322,109560.0,109550.0,1.41432251]
[1758890708776,0.03594,109570.0,109560.0,0.091211]
[1758890708974,0.03594,109570.0,109560.0,0.36759576]
[1758890709174,0.1271427,109570.0,109560.0,0.36759576]
[1758890709371,0.01322,109570.0,109560.0,0.45887411]
[1758890709774,0.01322,109570.0,109550.0,1.0466594]
[1758890709775,0.01371,109560.0,109550.0,0.06505085]
[1758890709972,0.01371,109550.0,109540.0,1.11155205]
[1758890710278,0.01371,109550.0,109540.0,1.47920683]
[1758890710475,0.01371,109550.0,109540.0,1.41415598]
[1758890711072,0.1049294,109550.0,109540.0,1.41415598]
[1758890711270,0.01371,109560.0,109550.0,0.0912194]
[1758890711471,0.03643,109560.0,109550.0,0.0912194]
[1758890711675,0.127641,109560.0,109550.0,0.0912194]
[1758890711876,0.03643,109560.0,109550.0,0.18250608]
[1758890712075,0.127641,109560.0,109550.0,0.18250608]
[1758890712376,0.527641,109560.0,109550.0,0.18250608]
[1758890712582,0.44943,109560.0,109550.0,0.18250608]
[1758890712974,0.04943,109560.0,109550.0,0.45889084]
[1758890713280,0.02871,109560.0,109550.0,0.45889084]
[1758890713579,0.015,109560.0,109550.0,0.92394169]
[1758890714175,0.015,109560.0,109550.0,0.93302519]
[1758890714779,0.02871,109560.0,109550.0,1.47838169]
[1758890714981,0.02871,109560.0,109550.0,1.13694608]
[1758890715382,0.142641,109560.0,109550.0,1.20175693]
[1758890715579,0.05143,109560.0,109550.0,1.13670608]
[1758890715886,0.02871,109560.0,109550.0,1.41309084]
[1758890716377,0.119921,109560.0,109550.0,1.41309084]
[1758890716582,0.015,109560.0,109550.0,1.41309084]
[1758890717878,0.01371,109590.0,109580.0,0.0911938]
[1758890718071,0.01371,109590.0,109580.0,1.32133856]
[1758890718275,0.01371,109590.0,109580.0,1.0449138]
[1758890718276,0.03643,109590.0,109580.0,1.0449138]
[1758890718482,0.03643,109590.0,109580.0,0.18247215]
[1758890718779,0.01371,109580.0,109570.0,0.7473542]
[1758890718981,0.03643,109580.0,109570.0,0.7473542]
[1758890719175,0.1276238,109580.0,109570.0,0.18244756]
[1758890719376,0.5276238,109580.0,109570.0,0.0911942]
[1758890719885,0.0912022,109570.0,109560.0,0.8384478]
[1758890720078,0.1276322,109570.0,109560.0,0.8384478]
[1758890720381,0.1276322,109570.0,109560.0,1.20609425]
[1758890720584,0.1276322,109570.0,109560.0,0.18246949]
[1758890720778,0.1276405,109560.0,109550.0,0.15626295]
[1758890720977,0.1276405,109560.0,109550.0,1.0444521]
[1758890721178,0.1246405,109560.0,109550.0,1.13572212]
[1758890721784,0.03643,109560.0,109550.0,1.13572212]
[1758890722181,0.43643,109560.0,109550.0,0.0912121]
[1758890722382,0.43643,109560.0,109550.0,0.36759686]
[1758890722586,0.03643,109560.0,109550.0,0.36759686]
[1758890722787,0.01371,109560.0,109550.0,0.45887521]
[1758890722988,0.01371,109560.0,109550.0,0.45987521]
[1758890723188,0.01371,109560.0,109550.0,0.46687521]
[1758890723580,0.03643,109560.0,109550.0,0.46687521]
[1758890723781,0.03643,109560.0,109550.0,0.46087521]
[1758890724387,0.03643,109560.0,109550.0,0.18449045]
[1758890724585,0.1276405,109560.0,109550.0,0.0922121]
[1758890724787,0.5276405,109560.0,109550.0,0.0992121]
[1758890725492,0.01371,109560.0,109550.0,0.46687521]
[1758890725690,0.01371,109560.0,109550.0,0.46587521]
[1758890726491,0.01571,109560.0,109550.0,0.45987521]
[1758890726987,0.01571,109560.0,109550.0,0.45887521]
[1758890727192,0.01371,109570.0,109560.0,0.0912105]
[1758890727495,0.01371,109570.0,109560.0,0.36759526]
[1758890727694,0.1049122,109570.0,109560.0,0.36759526]
[1758890727886,0.1276322,109570.0,109560.0,0.36759526]
[1758890728886,0.1276405,109560.0,109550.0,1.39265071]
[1758890729091,0.1276405,109560.0,109550.0,0.0982188]
[1758890729292,0.1276405,109560.0,109550.0,0.09827002]
[1758890729293,0.5276405,109560.0,109550.0,0.09827002]
[1758890729489,0.5276405,109560.0,109550.0,0.007]
[1758890729692,0.1276571,109540.0,109530.0,0.06505085]
[1758890729887,0.1276571,109540.0,109530.0,0.0912355]
[1758890730289,0.1276655,109530.0,109520.0,0.80659361]
[1758890730483,0.03643,109530.0,109520.0,0.80659361]
[1758890730790,0.03643,109530.0,109520.0,0.89788862]
[1758890731184,0.02543,109530.0,109520.0,0.90924862]
[1758890731384,0.1166655,109530.0,109520.0,0.63286386]
[1758890731584,0.1166655,109530.0,109520.0,0.90924862]
[1758890731989,0.1166655,109530.0,109520.0,0.25894386]
[1758890732190,0.1166655,109530.0,109520.0,0.01136]
[1758890732387,0.1043038,109520.0,109510.0,0.07641085]
[1758890732588,0.1043038,109520.0,109510.0,0.06505085]
[1758890732589,0.1258038,109520.0,109510.0,0.06505085]
[1758890732788,0.1258122,109510.0,109500.0,0.16766785]
[1758890733093,0.1258122,109510.0,109490.0,1.18925061]
[1758890733294,0.01306,109500.0,109490.0,1.10764637]
[1758890733600,0.01306,109500.0,109490.0,1.47533448]
[1758890734097,0.01306,109500.0,109490.0,1.47505448]
[1758890734291,0.01306,109500.0,109490.0,1.41000363]
[1758890734497,0.02706,109500.0,109490.0,1.41000363]
[1758890734691,0.02706,109500.0,109490.0,1.44317995]
[1758890735891,0.04856,109500.0,109490.0,0.41218958]
[1758890736092,0.1398205,109500.0,109490.0,0.32092108]
[1758890736694,0.04856,109500.0,109490.0,0.41218988]
[1758890738596,0.04856,109500.0,109490.0,0.1026288]
[1758890738791,0.04856,109500.0,109490.0,0.41218988]
[1758890739695,0.1398203,109500.0,109490.0,0.41218988]
[1758890739891,0.1398203,109500.0,109480.0,0.1026336]
[1758890739892,0.1258286,109490.0,109480.0,0.1026336]
[1758890740095,0.1258286,109490.0,109480.0,0.41219468]
[1758890740296,0.03456,109490.0,109480.0,0.50352305]
[1758890740897,0.03456,109490.0,109480.0,0.19396197]
[1758890741098,0.03656,109490.0,109480.0,0.50352305]
[1758890741395,0.1278288,109490.0,109480.0,0.50552305]
[1758890741596,0.03656,109490.0,109480.0,0.50552305]
[1758890741792,0.1278288,109490.0,109480.0,0.50552305]
[1758890742094,0.1278288,109490.0,109480.0,0.002]
[1758890742317,0.5278288,109490.0,109480.0,0.002]
[1758890742504,0.83738988,109490.0,109480.0,0.002]
[1758890742897,0.5278288,109490.0,109480.0,0.002]
[1758890743998,0.83738988,109490.0,109480.0,0.002]
[1758890744301,0.03456,109460.0,109450.0,0.1026612]
[1758890744800,0.03456,109460.0,109450.0,0.1026622]
[1758890746302,0.1258538,109460.0,109450.0,0.03536]
[1758890746605,0.03456,109460.0,109450.0,0.1266622]
[1758890747203,0.03456,109460.0,109450.0,0.1216622]
[1758890747402,0.03456,109460.0,109450.0,0.1226622]
[1758890747601,0.03456,109460.0,109450.0,0.43222328]
[1758890747804,0.03456,109460.0,109450.0,0.41422328]
[1758890748598,0.01306,109460.0,109450.0,0.41422328]
[1758890748998,0.01306,109460.0,109450.0,0.41418328]
[1758890749197,0.03456,109460.0,109450.0,0.41410328]
[1758890749495,0.0346386,109460.0,109450.0,0.32280108]
[1758890749801,0.5258536,109460.0,109450.0,0.002]
[1758890751702,0.5258536,109460.0,109450.0,0.0933021]
[1758890752507,0.1258536,109460.0,109450.0,0.0933021]
[1758890753106,0.1258536,109460.0,109450.0,0.002]
[1758890753803,0.1258536,109460.0,109450.0,0.1044719]
[1758890754496,0.1258536,109460.0,109450.0,0.41403298]
[1758890754903,0.1258536,109460.0,109450.0,0.1044719]
[1758890755495,0.1258536,109460.0,109450.0,0.002]
[1758890755902,0.03456,109460.0,109450.0,0.1044719]
[1758890756102,0.1258536,109460.0,109450.0,0.1044719]
[1758890756708,0.03456,109460.0,109450.0,0.41403298]
[1758890758402,0.03456,109460.0,109450.0,0.90539472]
[1758890758709,0.1258536,109460.0,109450.0,0.59583364]
[1758890758904,0.1258536,109460.0,109450.0,0.90539472]
[1758890759209,0.03456,109460.0,109450.0,0.90539472]
[1758890759897,0.01306,109470.0,109450.0,0.90539472]
[1758890760103,0.03456,109470.0,109460.0,0.41202468]
[1758890760409,0.01306,109470.0,109460.0,0.41202468]
[1758890761008,0.01306,109470.0,109460.0,0.81202468]
[1758890761309,0.1258453,109470.0,109460.0,0.5024636]
[1758890761503,0.1258453,109470.0,109460.0,0.01117]
[1758890761809,0.1258453,109470.0,109460.0,0.1024636]
[1758890763700,0.1328453,109470.0,109460.0,0.1024636]
[1758890764403,0.1338453,109470.0,109460.0,0.1024636]
[1758890764599,0.1270836,109460.0,109450.0,0.1024649]
[1758890764800,0.1270836,109460.0,109450.0,0.1024719]
[1758890764999,0.03579,109460.0,109450.0,0.1024719]
[1758890765308,0.01342,109460.0,109450.0,0.41203298]
[1758890765704,0.02106,109470.0,109460.0,0.0912936]
[1758890765909,0.02106,109470.0,109460.0,0.41202468]
[1758890766402,0.04182,109470.0,109460.0,0.50338642]
[1758890766606,0.007,109470.0,109460.0,0.50338642]
[1758890766901,0.1260979,109480.0,109470.0,0.1024553]
[1758890767098,0.0912853,109470.0,109460.0,0.50337972]
[1758890767309,0.1270053,109470.0,109460.0,0.1024569]
[1758890768012,0.03572,109470.0,109460.0,0.1024569]
[1758890768206,0.04272,109470.0,109460.0,0.41201798]
[1758890768407,0.04272,109470.0,109460.0,0.1024569]
[1758890768602,0.04272,109470.0,109460.0,0.41201798]
[1758890768802,0.02096,109470.0,109460.0,0.41201798]
[1758890769104,0.02096,109470.0,109460.0,0.1024569]
[1758890769411,0.02096,109470.0,109460.0,0.41201798]
[1758890769800,0.04272,109470.0,109460.0,0.1024569]
[1758890770001,0.1340053,109470.0,109460.0,0.01117]
[1758890770213,0.1340053,109470.0,109460.0,0.1024636]
[1758890770902,0.1340053,109470.0,109460.0,0.41202468]
[1758890771109,0.04272,109470.0,109460.0,0.41202468]
[1758890771505,0.1340053,109470.0,109460.0,0.41202468]
[1758890773405,0.1341004,109470.0,109460.0,0.41202468]
[1758890773606,0.1340053,109470.0,109460.0,0.41202468]
[1758890775008,0.13409673,109470.0,109460.0,0.1024636]
[1758890775209,0.13408352,109470.0,109460.0,0.1024636]
[1758890775411,0.1340053,109470.0,109460.0,0.1024636]
[1758890775904,0.1340053,109470.0,109460.0,0.41202468]
[1758890776510,0.02096,109470.0,109460.0,0.81202468]
[1758890776709,0.008,109470.0,109460.0,0.90337808]
[1758890777312,0.008,109470.0,109460.0,0.96842893]
[1758890777919,0.008,109470.0,109460.0,0.90337808]
[1758890778117,0.00807319,109470.0,109460.0,0.96842893]
[1758890778611,0.01306,109490.0,109480.0,0.40083788]
[1758890779415,0.01306,109490.0,109480.0,0.49219128]
[1758890779815,0.1300884,109490.0,109480.0,0.49219128]
[1758890780910,0.1440884,109490.0,109480.0,0.49219128]
[1758890781306,0.05282,109490.0,109480.0,0.49219128]
[1758890782614,0.1440884,109490.0,109480.0,0.49219128]
[1758890783619,0.1440884,109490.0,109480.0,0.1826302]
[1758890783818,0.1440884,109490.0,109480.0,0.0912768]
[1758890784121,0.1440884,109490.0,109480.0,0.40083788]
[1758890784313,0.03882,109490.0,109480.0,0.40083788]
[1758890784514,0.04682,109490.0,109480.0,0.40083788]
[1758890785021,0.1300884,109490.0,109480.0,0.40083788]
[1758890785318,0.04682,109490.0,109480.0,0.40083788]
[1758890785716,0.1360884,109490.0,109480.0,0.40083788]
[1758890787419,0.1340884,109490.0,109480.0,0.40083788]
[1758890788828,0.04282,109490.0,109480.0,0.40083788]
[1758890789517,0.04482,109490.0,109480.0,0.40083788]
[1758890790112,0.04482,109490.0,109480.0,0.41997788]
[1758890790113,0.01485407,109490.0,109480.0,0.41997788]
[1758890790319,0.10412247,109490.0,109480.0,0.41997788]
[1758890790623,0.11708247,109490.0,109480.0,0.41997788]
[1758890790922,0.11108247,109490.0,109480.0,0.41997788]
[1758890791814,0.01981407,109490.0,109480.0,0.41997788]
[1758890792114,0.00685407,109490.0,109480.0,0.42695788]
[1758890792322,0.002,109490.0,109480.0,0.42695788]
[1758890792515,0.002,109490.0,109480.0,0.91829459]
[1758890792823,0.002,109490.0,109480.0,0.98334544]
[1758890794125,0.002,109490.0,109480.0,0.98434544]
[1758890794623,0.002,109490.0,109480.0,0.95147989]
[1758890795024,0.002,109490.0,109480.0,1.89239989]
[1758890795215,0.10965108,109510.0,109500.0,0.1145201]
[1758890795524,0.20090278,109510.0,109500.0,0.1145201]
[1758890795824,0.20090278,109510.0,109500.0,0.02326]
[1758890796416,0.20090278,109510.0,109500.0,0.1145201]
[1758890796811,0.11165108,109510.0,109500.0,0.1145201]
[1758890797018,0.11165108,109510.0,109500.0,0.88752566]
[1758890797019,0.002,109510.0,109500.0,0.88752566]
[1758890797218,0.002,109510.0,109500.0,0.95257651]
[1758890798419,0.01,109510.0,109500.0,0.95257651]
[1758890799435,0.1261318,109540.0,109530.0,0.1144953]
[1758890800122,0.126127,109540.0,109530.0,0.39119083]
[1758890800423,0.126127,109540.0,109530.0,0.02326]
[1758890801024,0.129127,109540.0,109530.0,0.1144953]
[1758890801321,0.20126934,109540.0,109530.0,0.1144953]
[1758890801521,0.11004234,109540.0,109530.0,0.1144953]
[1758890801827,0.20826934,109540.0,109530.0,0.1144953]
[1758890802721,0.60826934,109540.0,109530.0,0.02326]
[1758890803112,0.60126934,109540.0,109530.0,0.02826]
[1758890803726,0.59826934,109540.0,109530.0,0.02826]
[1758890804129,0.59826934,109540.0,109530.0,0.005]
[1758890804823,0.126144,109530.0,109520.0,0.1145036]
[1758890805129,0.126144,109530.0,109520.0,0.02326]
[1758890805428,0.126144,109530.0,109520.0,0.114504]
[1758890806029,0.126144,109530.0,109520.0,0.02326]
[1758890806225,0.133144,109530.0,109520.0,0.1145038]
[1758890807428,0.533144,109530.0,109510.0,0.0912518]
[1758890807618,0.126144,109520.0,109510.0,0.1145118]
[1758890807819,0.0349,109520.0,109510.0,0.39120733]
[1758890808334,0.126144,109520.0,109510.0,0.20581932]
[1758890808831,0.127144,109520.0,109510.0,0.20581932]
[1758890809425,0.127144,109520.0,109510.0,0.1145118]
[1758890810732,0.128144,109520.0,109510.0,0.1145118]
[1758890811623,0.002,109520.0,109510.0,0.48251902]
[1758890811828,0.002,109520.0,109510.0,0.48794902]
[1758890812429,0.128144,109520.0,109510.0,0.48251902]
[1758890812631,0.128144,109520.0,109510.0,0.11457169]
[1758890812933,0.127144,109520.0,109510.0,0.1145123]
[1758890813129,0.126144,109520.0,109510.0,0.1195123]
[1758890814532,0.0349,109520.0,109510.0,0.1195123]
[1758890814733,0.127144,109520.0,109510.0,0.1195123]
[1758890816133,0.127144,109520.0,109510.0,0.1145123]
[1758890816433,0.128144,109520.0,109510.0,0.1145123]
[1758890817027,0.128144,109520.0,109510.0,0.02326]
[1758890817735,0.128144,109520.0,109510.0,0.1145121]
[1758890819236,0.128144,109520.0,109510.0,0.02326]
[1758890819433,0.128144,109520.0,109510.0,0.1145123]
[1758890820431,0.128144,109520.0,109480.0,0.34673638]
[1758890820432,0.528144,109520.0,109480.0,0.34673638]
[1758890820633,0.1261662,109500.0,109490.0,0.114529]
[1758890820830,0.0349,109500.0,109490.0,0.114529]
[1758890821032,0.126158,109510.0,109500.0,0.1145206]
[1758890821232,0.0349,109510.0,109500.0,0.1145206]
[1758890821431,0.1261523,109510.0,109500.0,0.1145206]
[1758890823637,0.5261523,109510.0,109500.0,0.02326]
[1758890823841,0.5261523,109510.0,109500.0,0.02826]
[1758890824034,0.5261523,109510.0,109500.0,0.1195206]
[1758890824230,0.1261523,109510.0,109500.0,0.1195206]
[1758890824634,0.0349,109510.0,109500.0,0.1195206]
[1758890825039,0.13523459,109510.0,109500.0,0.1195206]
[1758890825539,0.13523459,109510.0,109500.0,0.005]
[1758890825540,0.53523459,109510.0,109500.0,0.005]
[1758890827040,0.13523459,109510.0,109500.0,0.1178105]
[1758890827241,0.1261523,109510.0,109500.0,0.1178105]
[1758890827635,0.0349,109510.0,109500.0,0.1178105]
[1758890829037,0.0349,109510.0,109500.0,0.20913053]
[1758890829637,0.01278,109510.0,109500.0,0.20913053]
[1758890829832,0.1040313,109520.0,109510.0,0.1128021]
[1758890829833,0.0359,109520.0,109510.0,0.1128021]
[1758890830642,0.1047521,109510.0,109500.0,0.005]
[1758890830843,0.1278805,109500.0,109490.0,0.02155]
[1758890831344,0.1278971,109480.0,109470.0,0.177935]
[1758890831643,0.1278971,109480.0,109470.0,0.17796379]
[1758890832041,0.1278971,109480.0,109470.0,0.0866521]
[1758890833047,0.1168971,109480.0,109470.0,0.0866521]
[1758890833748,0.1168971,109480.0,109470.0,0.0916521]
[1758890833947,0.03662,109480.0,109470.0,0.5829376]
[1758890834247,0.1047771,109480.0,109470.0,0.67428265]
[1758890834443,0.1278971,109480.0,109470.0,0.67428265]
[1758890834642,0.1278971,109480.0,109470.0,0.0916521]
[1758890834844,0.1278971,109480.0,109470.0,0.18299715]
[1758890835040,0.1278971,109480.0,109470.0,0.27428265]
[1758890835652,0.1278971,109480.0,109470.0,0.18299715]
[1758890836147,0.1278971,109480.0,109470.0,0.02655]
[1758890836554,0.5278971,109480.0,109470.0,0.005]
[1758890837248,0.5278971,109480.0,109460.0,0.1563934]
[1758890837249,0.5288971,109480.0,109460.0,0.1563934]
[1758890837451,0.1279055,109470.0,109460.0,0.1779434]
[1758890837849,0.1279055,109470.0,109460.0,0.0866521]
[1758890838854,0.1279055,109470.0,109460.0,0.1779459]
[1758890839256,0.03662,109470.0,109460.0,0.1128438]
[1758890839455,0.0135,109470.0,109460.0,0.1128438]
[1758890839648,0.1137827,109480.0,109470.0,0.1128355]
[1758890839649,0.0225,109480.0,109470.0,0.1128355]
[1758890839856,0.1137772,109480.0,109470.0,0.1128355]
[1758890840155,0.009,109480.0,109470.0,0.5178255]
[1758890840351,0.1047703,109490.0,109470.0,0.6091789]
[1758890840553,0.1278903,109490.0,109480.0,0.1128269]
[1758890842251,0.0135,109490.0,109480.0,0.20416361]
[1758890842552,0.20174812,109500.0,109490.0,0.1128186]
[1758890843757,0.21674812,109500.0,109490.0,0.1128186]
[1758890844555,0.12548232,109500.0,109490.0,0.1128186]
[1758890844760,0.015,109500.0,109490.0,0.8892925]
[1758890845261,0.015,109500.0,109490.0,0.9543946]
[1758890845663,0.017,109500.0,109490.0,0.96358717]
[1758890846358,0.015,109500.0,109490.0,1.8859146]
[1758890846558,0.1278722,109510.0,109500.0,0.1128104]
[1758890847263,0.1278722,109510.0,109500.0,0.20413043]
[1758890848264,0.1278722,109510.0,109500.0,0.02155]
[1758890848657,0.1278804,109500.0,109490.0,0.1779157]
[1758890848966,0.1278804,109500.0,109480.0,0.1779292]
[1758890848967,0.1278887,109490.0,109480.0,0.1779292]
[1758890849365,0.1278887,109490.0,109480.0,0.0866521]
[1758890849562,0.1278887,109490.0,109480.0,0.02155]
[1758890850364,0.1278887,109490.0,109480.0,0.1128271]
[1758890851255,0.1368887,109490.0,109480.0,0.02155]
[1758890851862,0.127897,109480.0,109470.0,0.0866521]
[1758890852256,0.527897,109480.0,109470.0,0.1779376]
[1758890852455,0.527897,109480.0,109470.0,0.1128355]
[1758890852658,0.599407,109480.0,109470.0,0.1128355]
[1758890852860,0.1261255,109470.0,109460.0,0.0881621]
[1758890853069,0.1261255,109470.0,109460.0,0.0651021]
[1758890853254,0.1261255,109470.0,109460.0,0.0912938]
[1758890853459,0.1261255,109470.0,109460.0,0.1143538]
[1758890854164,0.1261255,109470.0,109460.0,0.02406]
[1758890854165,0.5261255,109470.0,109460.0,0.02406]
[1758890854364,0.5261255,109470.0,109460.0,0.1183537]
[1758890854567,0.5261254,109470.0,109460.0,0.1183537]
[1758890854763,0.03484,109470.0,109460.0,0.1183537]
[1758890854963,0.1984672,109480.0,109470.0,0.1143454]
[1758890855160,0.1269572,109480.0,109470.0,0.1143454]
[1758890855974,0.1269572,109480.0,109460.0,0.1173533]
[1758890855975,0.1261254,109470.0,109460.0,0.1173533]
[1758890856470,0.1261254,109470.0,109460.0,0.02606]
[1758890856670,0.1291254,109470.0,109460.0,0.02306]
[1758890857158,0.1261338,109460.0,109450.0,0.1794581]
[1758890857870,0.1261338,109460.0,109450.0,0.2708115]
[1758890858168,0.03484,109460.0,109450.0,0.2708115]
[1758890858469,0.1261337,109460.0,109450.0,0.58359601]
[1758890859071,0.03484,109460.0,109450.0,0.58359601]
[1758890859259,0.1261337,109460.0,109450.0,0.58359601]
[1758890859868,0.1261337,109460.0,109450.0,0.58459601]
[1758890860162,0.03484,109460.0,109450.0,0.58459601]
[1758890860470,0.1039483,109470.0,109450.0,0.58459601]
[1758890860471,0.1261283,109470.0,109460.0,0.1143537]
[1758890861264,0.1261283,109470.0,109460.0,0.02306]
[1758890861665,0.1261337,109460.0,109450.0,0.1834583]
[1758890861865,0.1261337,109460.0,109450.0,0.49324281]
[1758890862369,0.03484,109460.0,109450.0,0.49324281]
[1758890862566,0.03484,109460.0,109450.0,0.49224281]
[1758890863065,0.03484,109460.0,109450.0,0.48924281]
[1758890863662,0.03484,109460.0,109450.0,0.49024281]
[1758890863866,0.1261255,109470.0,109460.0,0.1143537]
[1758890864166,0.1261255,109470.0,109460.0,0.42413821]
[1758890864476,0.1261255,109470.0,109460.0,0.1143537]
[1758890864973,0.03484,109470.0,109460.0,0.1143537]
[1758890865178,0.01266,109470.0,109460.0,0.42413821]
[1758890865673,0.1039453,109470.0,109460.0,0.42413821]
[1758890865872,0.1261253,109470.0,109460.0,0.42413821]
[1758890866267,0.1261253,109470.0,109460.0,0.1143537]
[1758890866775,0.1291253,109470.0,109460.0,0.1143537]